{"text_format":"1","workbook":"xlsx","n_sheets":1,"sheets":["Sheet1"],"not_rendered":{"charts":0,"images":0,"macros":1,"external_links":0,"defined_names":1,"comments":0,"pivot_tables":0},"unopened":[],"bounds":{"document_bytes":16777216,"sheet_cells":100000,"rows_first":2000,"rows_last":500,"rows_between":2000,"halvings":0,"cell_chars":16384,"cell_head_chars":4096},"cells_cut":0,"cells_raw":0,"read":"whole","date_system":"1900"}

{"sheet":"Sheet1","index":0,"n_rows":477,"n_cols":126,"rows_kept":477,"cut":false,"hidden":false,"merged":[[398,108,400,122],[376,105,377,106],[391,105,392,106],[375,108,378,122],[379,108,382,122],[371,108,374,122],[373,2,374,5],[365,2,366,3],[371,2,372,24],[386,2,387,5],[386,6,387,28],[388,6,389,17],[365,109,367,121],[367,4,368,18],[373,96,374,101],[373,66,374,78],[373,79,374,80],[373,88,374,95],[0,125,115,125],[116,125,236,125],[237,125,347,125],[348,125,467,125],[459,108,462,122],[289,57,290,83],[289,86,290,101],[293,86,294,101],[297,86,298,101],[293,57,294,83],[297,57,298,83],[238,110,239,116],[265,104,266,121],[75,124,77,124],[444,108,446,122],[421,67,422,69],[424,108,427,122],[420,95,423,107],[428,108,431,122],[430,88,431,95],[430,96,431,101],[428,87,429,106],[421,71,422,94],[369,1,370,122],[476,1,484,122],[432,108,443,122],[447,108,458,122],[463,108,467,122],[456,94,457,106],[460,33,461,56],[432,2,433,17],[434,2,435,14],[464,2,466,29],[453,2,454,22],[437,33,438,66],[441,33,442,74],[444,33,446,55],[448,33,449,54],[438,2,439,22],[449,2,450,14],[451,2,452,17],[436,2,437,17],[447,2,448,18],[456,33,457,49],[452,94,453,106],[433,33,434,55],[452,33,453,59],[433,94,434,106],[253,103,254,122],[255,103,256,122],[233,84,234,92],[269,104,270,121],[301,104,302,121],[253,85,254,102],[261,56,262,84],[293,104,294,121],[285,104,286,121],[273,57,274,83],[277,57,278,83],[241,1,242,122],[243,2,244,122],[238,106,239,109],[234,102,235,116],[250,2,250,122],[251,1,252,122],[237,1,238,54],[233,42,234,64],[301,20,302,54],[273,20,274,54],[281,57,282,83],[289,20,290,50],[281,20,282,45],[1,101,2,104],[124,119,125,122],[131,93,132,110],[1,89,2,100],[1,105,2,111],[183,84,184,122],[157,101,158,104],[162,77,163,93],[157,77,158,81],[167,42,168,81],[175,42,176,81],[137,40,138,56],[4,93,5,122],[20,2,24,63],[9,105,10,109],[179,84,180,122],[119,94,120,105],[119,106,120,109],[119,110,120,116],[179,2,180,39],[9,96,10,104],[153,110,154,116],[153,107,154,109],[167,84,168,122],[217,102,218,109],[226,102,227,112],[219,102,220,111],[192,98,193,108],[192,111,193,122],[188,58,189,122],[192,85,193,95],[190,58,191,83],[162,57,163,71],[224,101,225,122],[209,102,210,119],[197,84,198,96],[201,98,202,108],[222,101,223,122],[197,42,198,57],[197,97,198,109],[195,110,196,122],[197,110,198,122],[195,58,196,70],[195,71,196,83],[215,102,216,122],[221,84,222,95],[217,42,218,51],[219,42,220,71],[371,88,372,100],[309,2,310,8],[313,2,314,8],[321,86,322,101],[325,86,326,101],[317,2,318,8],[325,57,326,83],[337,57,338,83],[349,106,350,109],[317,20,318,54],[313,57,314,83],[371,33,372,58],[371,63,372,83],[356,2,357,15],[353,1,354,122],[349,110,350,116],[342,86,345,101],[349,94,350,105],[329,104,330,121],[333,104,334,121],[337,104,338,121],[321,104,322,121],[325,104,326,121],[360,109,362,121],[351,1,352,122],[356,109,357,121],[333,2,334,8],[342,104,345,121],[360,33,362,82],[360,4,361,18],[360,2,361,3],[321,2,322,8],[325,2,326,8],[321,57,322,83],[325,20,326,54],[329,2,330,8],[337,2,338,8],[333,20,334,54],[349,117,350,123],[416,2,417,25],[414,33,415,73],[399,33,400,82],[410,33,411,73],[373,6,374,22],[376,48,377,104],[391,48,392,104],[386,88,387,100],[395,33,396,64],[375,6,376,27],[386,63,387,83],[405,2,406,22],[401,2,402,25],[402,33,403,57],[403,2,404,29],[406,33,407,47],[417,33,418,54],[406,48,407,104],[380,33,381,64],[386,33,387,58],[388,66,389,78],[384,33,385,82],[388,79,389,80],[391,33,392,47],[301,2,302,8],[333,57,334,83],[285,86,286,101],[301,57,302,83],[277,104,278,121],[281,104,282,121],[289,104,290,121],[313,104,314,121],[317,104,318,121],[329,57,330,83],[305,2,306,8],[305,57,306,83],[297,104,298,121],[329,20,330,54],[321,20,322,54],[309,20,310,54],[313,20,314,54],[309,86,310,101],[309,57,310,83],[317,57,318,83],[317,86,318,101],[313,86,314,101],[329,86,330,101],[333,86,334,101],[259,1,260,9],[255,10,256,18],[253,1,254,9],[253,10,254,18],[257,10,258,18],[259,10,260,18],[255,1,256,9],[257,1,258,9],[261,10,262,18],[238,94,239,105],[239,1,240,87],[246,3,247,21],[246,22,247,55],[246,62,247,98],[232,102,233,112],[234,22,235,35],[231,22,232,32],[232,2,233,10],[235,2,236,10],[230,102,231,112],[246,101,247,122],[229,2,230,19],[238,117,239,123],[228,102,229,116],[230,84,231,95],[229,42,230,73],[231,46,232,62],[227,84,228,95],[225,42,226,59],[223,42,224,77],[224,2,225,20],[224,84,225,95],[226,21,227,40],[227,2,228,19],[227,42,228,71],[228,21,229,40],[224,22,225,39],[215,42,216,65],[218,84,219,96],[215,84,216,95],[205,22,206,39],[207,2,208,19],[207,21,208,40],[205,83,206,100],[207,83,208,100],[221,42,222,79],[218,22,219,31],[221,22,222,31],[218,2,219,14],[215,2,216,14],[221,2,222,14],[215,22,216,31],[212,2,213,13],[205,2,206,19],[209,22,210,30],[188,29,189,57],[205,42,206,81],[213,42,214,50],[207,41,208,82],[209,42,210,55],[212,22,213,31],[192,43,193,56],[192,59,193,69],[192,72,193,82],[195,29,196,41],[192,30,193,40],[201,30,202,40],[211,42,212,57],[201,43,202,56],[201,15,202,27],[175,84,176,122],[171,84,172,122],[171,42,172,81],[171,2,172,39],[175,2,176,39],[186,1,187,40],[186,41,187,122],[179,42,180,81],[183,42,184,80],[183,2,184,39],[195,2,196,12],[211,102,212,110],[213,102,214,122],[195,15,196,27],[201,111,202,122],[197,29,198,41],[207,101,208,122],[195,84,196,96],[195,97,196,109],[195,42,196,57],[212,84,213,95],[201,59,202,69],[201,72,202,82],[209,2,210,13],[209,84,210,95],[201,85,202,95],[205,102,206,119],[134,5,135,16],[128,2,129,32],[128,90,129,118],[131,40,132,58],[131,5,132,14],[134,40,135,78],[149,2,150,68],[143,40,144,70],[140,93,141,112],[140,5,141,16],[146,2,147,39],[134,93,135,106],[140,40,141,66],[143,5,144,10],[137,93,138,104],[137,5,138,16],[149,101,150,104],[149,77,150,81],[124,2,125,16],[124,24,125,30],[124,38,125,48],[124,56,125,66],[124,72,125,100],[124,108,125,112],[128,37,129,76],[72,93,73,98],[72,100,74,120],[94,63,95,91],[97,63,98,110],[88,62,89,87],[82,62,83,84],[72,73,73,78],[72,80,74,89],[85,62,86,71],[100,55,101,59],[97,55,98,59],[100,63,101,70],[121,2,122,29],[103,11,104,35],[100,11,101,51],[97,11,98,27],[103,3,104,7],[100,3,101,7],[37,34,38,70],[37,73,38,122],[29,70,31,83],[25,2,30,65],[32,2,33,49],[34,2,35,32],[34,34,35,68],[34,73,35,98],[49,73,50,122],[58,73,59,116],[70,93,71,122],[67,46,68,56],[64,46,65,56],[64,73,65,122],[67,73,68,122],[70,73,71,90],[82,2,83,4],[70,59,71,66],[79,2,80,4],[79,8,80,47],[79,62,80,77],[82,8,83,33],[4,67,5,85],[10,67,11,86],[5,2,6,23],[9,2,10,65],[13,2,14,65],[17,2,18,65],[26,85,28,122],[29,85,31,122],[26,67,28,83],[16,67,17,72],[16,93,17,106],[20,70,21,84],[23,70,24,84],[20,96,21,116],[23,96,24,116],[9,112,10,122],[40,2,41,38],[73,5,74,13],[73,32,74,38],[49,34,50,70],[64,2,65,9],[67,2,68,43],[70,2,71,17],[61,2,62,70],[46,34,47,68],[49,2,50,31],[42,4,44,121],[85,2,86,4],[94,3,95,7],[97,3,98,7],[91,2,92,64],[94,55,95,59],[94,11,95,30],[85,8,86,33],[46,73,47,92],[52,1,53,42],[58,2,59,21],[76,2,77,33],[55,2,56,122],[73,62,74,66],[46,2,47,32],[64,59,65,71],[67,59,68,70],[61,73,62,122],[76,59,77,110],[257,103,258,122],[255,19,256,55],[257,19,258,55],[259,103,260,122],[255,56,256,84],[257,56,258,84],[259,56,260,84],[259,85,260,102],[309,104,310,121],[305,104,306,121],[301,86,302,101],[261,85,262,102],[305,20,306,54],[285,57,286,83],[285,20,286,51],[305,86,306,101],[297,20,298,54],[277,20,278,54],[293,20,294,54],[119,117,120,123],[269,57,270,83],[265,20,266,54],[265,57,266,83],[259,19,260,55],[261,19,262,55],[253,56,254,84],[255,85,256,102],[257,85,258,102],[253,19,254,55],[161,2,162,25],[162,32,163,46],[163,2,164,20],[157,2,158,61],[153,2,154,25],[153,32,154,39],[153,57,154,66],[153,101,154,106],[153,77,154,86],[162,101,163,106],[197,2,198,12],[192,2,193,12],[192,15,193,27],[201,2,202,12],[441,94,442,106],[337,86,338,101],[337,20,338,54],[356,33,357,105],[342,3,345,54],[365,33,367,82],[362,4,363,21],[365,4,366,20],[1,112,2,119],[293,2,294,8],[297,2,298,8],[265,2,266,8],[269,2,270,8],[277,2,278,8],[281,2,282,8],[273,2,274,8],[285,2,286,8],[265,86,266,101],[269,86,270,101],[277,86,278,101],[281,86,282,101],[273,86,274,101],[289,2,290,8],[269,20,270,55],[37,2,38,3],[37,4,38,31],[448,94,449,106],[388,96,389,101],[388,88,389,95],[430,66,431,78],[376,33,377,47],[416,108,419,122],[401,108,404,122],[386,108,389,122],[383,108,385,122],[409,108,412,122],[405,108,408,122],[390,108,393,122],[394,108,397,122],[413,108,415,122],[428,33,429,58],[428,63,429,83],[421,33,422,66],[425,33,426,59],[406,105,407,106],[430,79,431,80],[420,108,423,122],[437,94,438,106]]}
[null,null,null,null,null,null,null,null,null,null,null,null,null,null,null,null,null,null,null,null,null,null,null,null,null,null,null,null,null,null,null,null,null,null,null,null,null,null,null,null,null,null,null,null,null,null,null,null,null,null,null,null,null,null,null,null,null,null,null,null,null,null,null,null,null,null,null,null,null,null,null,null,null,null,null,null,null,null,null,null,null,null,null,null,null,null,null,null,null,null,null,null,null,null,null,null,null,null,null,null,null,null,null,null,null,null,null,null,null,null,null,null,null,null,null,null,null,null,null,null,null,null,null,null,null,"PAGE 1"]
[null,null,null,null,null,null,null,null,null,null,null,null,null,null,null,null,null,null,null,null,null,null,null,null,null,null,null,null,null,null,null,null,null,null,null,null,null,null,null,null,null,null,null,null,null,null,null,null,null,null,null,null,null,null,null,null,null,null,null,null,null,null,null,null,null,null,null,null,null,null,null,null,null,null,null,null,null,null,null,null,null,null,null,null,null,null,null,null,null,"Contract #",null,null,null,null,null,null,null,null,null,null,null,null,null,null,null,"-HOME-"]
[]
[]
[null,null,null,null,null,null,null,null,null,null,null,null,null,null,null,null,null,null,null,null,null,null,null,null,null,null,null,null,null,null,null,null,null,null,null,null,null,null,null,null,null,null,null,null,null,null,null,null,null,null,null,null,null,null,null,null,null,null,null,null,null,null,null,null,null,null,null,"Rep Initial & Date",null,null,null,null,null,null,null,null,null,null,null,null,null,null,null,null,null,null,null,null,null,null,null,null,null,"FOR FISCAL USE ONLY"]
[null,null,"HOME Program"]
[]
[]
[]
[null,null,"First-Time Homebuyer / Owner-Occupied",null,null,null,null,null,null,null,null,null,null,null,null,null,null,null,null,null,null,null,null,null,null,null,null,null,null,null,null,null,null,null,null,null,null,null,null,null,null,null,null,null,null,null,null,null,null,null,null,null,null,null,null,null,null,null,null,null,null,null,null,null,null,null,null,null,null,null,null,null,null,null,null,null,null,null,null,null,null,null,null,null,null,null,null,null,null,null,null,null,null,null,null,null,"IDIS",null,null,null,null,null,null,null,null,null,null,null,null,null,null,null,"CAPES"]
[null,null,null,null,null,null,null,null,null,null,null,null,null,null,null,null,null,null,null,null,null,null,null,null,null,null,null,null,null,null,null,null,null,null,null,null,null,null,null,null,null,null,null,null,null,null,null,null,null,null,null,null,null,null,null,null,null,null,null,null,null,null,null,null,null,null,null,"Mgr. Initial & Date"]
[]
[]
[null,null,"Rehabilitation Programs"]
[]
[]
[null,null,null,null,null,null,null,null,null,null,null,null,null,null,null,null,null,null,null,null,null,null,null,null,null,null,null,null,null,null,null,null,null,null,null,null,null,null,null,null,null,null,null,null,null,null,null,null,null,null,null,null,null,null,null,null,null,null,null,null,null,null,null,null,null,null,null,"Setup",null,null,null,null,null,null,null,null,null,null,null,null,null,null,null,null,null,null,null,null,null,null,null,null,null,"Completion"]
[null,null,"Project Setup Report / Completion Report"]
[]
[]
[null,null,null,null,null,null,null,null,null,null,null,null,null,null,null,null,null,null,null,null,null,null,null,null,null,null,null,null,null,null,null,null,null,null,null,null,null,null,null,null,null,null,null,null,null,null,null,null,null,null,null,null,null,null,null,null,null,null,null,null,null,null,null,null,null,null,null,null,null,null,"Original Setup",null,null,null,null,null,null,null,null,null,null,null,null,null,null,null,null,null,null,null,null,null,null,null,null,null,"Original Completion"]
[]
[]
[null,null,null,null,null,null,null,null,null,null,null,null,null,null,null,null,null,null,null,null,null,null,null,null,null,null,null,null,null,null,null,null,null,null,null,null,null,null,null,null,null,null,null,null,null,null,null,null,null,null,null,null,null,null,null,null,null,null,null,null,null,null,null,null,null,null,null,null,null,null,"Revised Setup",null,null,null,null,null,null,null,null,null,null,null,null,null,null,null,null,null,null,null,null,null,null,null,null,null,"Revised Completion"]
[]
[]
[null,null,null,null,null,null,null,null,null,null,null,null,null,null,null,null,null,null,null,null,null,null,null,null,null,null,null,null,null,null,null,null,null,null,null,null,null,null,null,null,null,null,null,null,null,null,null,null,null,null,null,null,null,null,null,null,null,null,null,null,null,null,null,null,null,null,null,"If Revised, Why?",null,null,null,null,null,null,null,null,null,null,null,null,null,null,null,null,null," "]
[]
[]
[null,null,null,null,null,null,null,null,null,null,null,null,null,null,null,null,null,null,null,null,null,null,null,null,null,null,null,null,null,null,null,null,null,null,null,null,null,null,null,null,null,null,null,null,null,null,null,null,null,null,null,null,null,null,null,null,null,null,null,null,null,null,null,null,null,null,null,null,null,null,"Cancel, Why?"]
[]
[]
[null,null,"Part A: Contractor & Activity Information"]
[]
[null,null,"1. Project Number (HCD Assigned)",null,null,null,null,null,null,null,null,null,null,null,null,null,null,null,null,null,null,null,null,null,null,null,null,null,null,null,null,null,null,null,"2. HUD Activity Number (HCD Assigned)",null,null,null,null,null,null,null,null,null,null,null,null,null,null,null,null,null,null,null,null,null,null,null,null,null,null,null,null,null,null,null,null,null,null,null,null,null,null,"3. HOME Recipient Name"]
[]
[]
[null,null,"M",null,null,null,null,null,null,null,null,null,null,null,null,null,null,null,null,null,null,null,null,null,null,null,null,null,null,null,null,null,null,null,null,null,null,null,null,null,null,null,null,null,null,null,null,null,null,null,null,null,null,null,null,null,null,null,null,null,null,null,null,null,null,null,null,null,null,null,null,null,null," "]
[]
[]
[null,null,"4. Name of Person Completing Form"]
[]
[]
[]
[]
[null,null,null,null,null,null,null,null,null,null,null,null,null,null,null,null,null,null,null,null,null,null,null,null,null,null,null,null,null,null,null,null,null,null,null,null,null,null,null,null,null,null,null,null,null,null,null,null,null,null,null,null,null,null,null,null,null,null,null,null,null,null,null,null,null,null,null,null,null,null,null,null,null,null,null,null,null,null,null,null,null,null,null,null,null,null,null,null,null,null,null,null,null,null,null,null,null,null," "]
[null,null,"4a. Phone",null,null,null,null,null,null,null,null,null,null,null,null,null,null,null,null,null,null,null,null,null,null,null,null,null,null,null,null,null,null,null,"4b. Fax",null,null,null,null,null,null,null,null,null,null,null,null,null,null,null,null,null,null,null,null,null,null,null,null,null,null,null,null,null,null,null,null,null,null,null,null,null,null,"4c. e-mail"]
[]
[]
[null,null,null,null,null,null,null,null,null,null,null,null,null,null,null,null,null,null,null,null,null,null,null,null,null,null,null,null,null,null,null,null,null,null,null,null,null,null,null,null,null,null,null,null,null,null,null,null,null,null,null,null,null,null,null,null,null,null,null,null,null,null,null,null,null,null,null,null,null,null,null,null,null," "]
[]
[]
[null,"5. Project Name (Last Name/First Name)"]
[]
[]
[]
[]
[null,null,null,null,null,null,null,null,null,null,null,null,null,null,null,null,null,null,null,null,null,null,null,null,null,null,null,null,null,null,null,null,null,null,null,null,null,null,null,null,null,null,null,null,null,null,null,null,null,null,null,null,null,null,null,null,null,null,null,null,null,null,null,null,null,null,null,null,null,null,null,null,null,null,null,null,null,null,null,null,null,null,null,null,null,null,null,null,null,null,null,null,null,null,null,null,null,null," "]
[null,null,"5a. Project Address",null,null,null,null,null,null,null,null,null,null,null,null,null,null,null,null,null,null,null,null,null,null,null,null,null,null,null,null,null,null,null,null,null,null,null,null,null,null,null,null,null,null,null,null,null,null,null,null,null,null,null,null,null,null,null,null,null,null,null,null,null,null,null,null,null,null,null,null,null,null,"5b. County & County Code. (see Appendix 1D6)"]
[]
[]
[]
[]
[]
[null,null,"5c. City",null,null,null,null,null,null,null,null,null,null,null,null,null,null,null,null,null,null,null,null,null,null,null,null,null,null,null,null,null,null,null,null,null,null,null,null,null,null,null,null,null,null,null,"5d. State",null,null,null,null,null,null,null,null,null,null,null,null,"5e. Zip Code",null,null,null,null,null,null,null,null,null,null,null,null,null,"6. HOME Funds (Activity & ADC, no Admin or PI)"]
[]
[]
[null,null,null,null,null,null,null,null,null,null,null,null,null,null,null,null,null,null,null,null,null,null,null,null,null,null,null,null,null,null,null,null,null,null,null,null,null,null,null,null,null,null,null,null,null,null,null,null,null,null,null,null,null,null,null,null,null,null,null,null,null,null,null,null,null,null,null,null,null,null,null,null,null,{"$f":"CI278","v":0}]
[]
[null,null,null,null,null,null,null,null,null,null,null,null,null,null,null,null,null,null,null,null,null,null,null,null,null,null,null,null,null,null,null,null,null,null,null,null,null,null,null,null,null,null,null,null,null,null,null,null,null,null,null,null,null,null,null,null,null,null,null,null,null,null,null,null,null,null,null,null,null,null,null,null,null,null,null,null,null,null,null,null,null,null,null,null,null,null,null,null,null,null,null,null,null,null,null,null,null,null," "]
[null,null,"7. Activity Type",null,null,null,null,null,null,null,null,null,null,null,null,null,null,null,null,null,null,null,null,null,null,null,null,null,null,null,null,null,null,null,null,null,null,null,null,null,null,null,null,null,null,null,null,null,null,null,null,null,null,null,null,null,null,null,null,"8. Infill?",null,null,null,null,null,null,null,null,null,null,null,null,null,"9. Proposed Total",null,null,null,null,null,null,null,null,null,null,null,null,null,null,null,null,null,null,null,"10. Proposed HOME-Assisted"]
[]
[null,null,null,null,null,null,null,null,null,null,null,null,null,null,null,null,null,null,null,null,null,null,null,null,null,null,null,null,null,null,null,null,null,null,null,null,null,null,null,null,null,null,null,null,null,null,null,null,null,null,null,null,null,null,null,null,null,null,null,null,null,null,null,null,null,null,null,null,null,null,null,null,null,"Units",null,null,null,null,null,null,null,null,null,null,null,null,null,null,null,null,null,null,null,"Units"]
[null,null,null,null,null,"Program",null,null,null,null,null,null,null,null,null,null,null,null,null,null,null,null,null,null,null,null,null,null,null,null,null,null,"Project",null,null,null,null,null,null,null,null,null,null,null,null,null,null,null,null,null,null,null,null,null,null,null,null,null,null,null,null,null,"Yes"]
[]
[null,null,null,null,null,null,null,null,null,null,null,null,null,null,null,null,null,null,null,null,null,null,null,null,null,null,null,null,null,null,null,null,null,null,null,null,null,null,null,null,null,null,null,null,null,null,null,null,null,null,null,null,null,null,null,null,null,null,null,null,null,null,null,null,null,null,null,null,null,null,null,null,null,null,null,null,null,null,null,null,null,null,null,null,null,null,null,null,null,null,null,null,null,null,null,null,null,null," ",null,null,null,null,null,null,null,null,null,null,null,null,null,null,null,null,null,null,null,null,null,null,null,null,null,1]
[null,null,"11. Contract Activity (Check one)",null,null,null,null,null,null,null,null,null,null,null,null,null,null,null,null,null,null,null,null,null,null,null,null,null,null,null,null,null,null,null,null,null,null,null,null,null,null,null,null,null,null,null,null,null,null,null,null,null,null,null,null,null,null,null,null,"12. Special Purpose of Activity (Check all that apply)"]
[]
[]
[null,null,"a.",null,null,null,null,null,"FTHB - Acquisition with or without Rehab",null,null,null,null,null,null,null,null,null,null,null,null,null,null,null,null,null,null,null,null,null,null,null,null,null,null,null,null,null,null,null,null,null,null,null,null,null,null,null,null,null,null,null,null,null,null,null,null,null,null,null,null,null,"Help Homeless"]
[]
[null,null,null,null,null,null,null,null,null,null,null,null,null,null,null,null,null,null,null,null,null,null,null,null,null,null,null,null,null,null,null,null,null,null,null,null,null,null,null,null," "]
[null,null,"b.",null,null,null,null,null,"FTHB - New Construction",null,null,null,null,null,null,null,null,null,null,null,null,null,null,null,null,null,null,null,null,null,null,null,null,null,null,null,null,null,null,null,null,null,null,null,null,null,null,null,null,null,null,null,null,null,null,null,null,null,null,null,null,null,"Prevent Homelessness"]
[]
[]
[null,null,"c.",null,null,null,null,null,"Owner - Occupied Rehab",null,null,null,null,null,null,null,null,null,null,null,null,null,null,null,null,null,null,null,null,null,null,null,null,null,null,null,null,null,null,null,null,null,null,null,null,null,null,null,null,null,null,null,null,null,null,null,null,null,null,null,null,null,"HIV/AIDS"]
[]
[]
[null,null,null,null,null,null,null,null,null,null,null,null,null,null,null,null,null,null,null,null,null,null,null,null,null,null,null,null,null,null,null,null,null,null,null,null,null,null,null,null,null,null,null,null,null,null,null,null,null,null,null,null,null,null,null,null,null,null,null,null,null,null,"Help person w/Disabilities"]
[]
[]
[null,null,"13. Special areas where Activity is located: (Check all that apply)"]
[]
[]
[null,null,null,"Yes",null,null,null,null,null,null,null,"CDBG strategy area",null,null,null,null,null,null,null,null,null,null,null,null,null,null,null,null,null,null,null,null,null,null,null,null,null,null,null,null,null,null,null,null,null,null,null,null,null,null,null,null,null,null,null,"Yes",null,null,null,null,null,null,null,"Brownfield redevelpment area"]
[]
[]
[null,null,null,"Yes",null,null,null,null,null,null,null,"Local target area",null,null,null,null,null,null,null,null,null,null,null,null,null,null,null,null,null,null,null,null,null,null,null,null,null,null,null,null,null,null,null,null,null,null,null,null,null,null,null,null,null,null,null,"Yes",null,null,null,null,null,null,null,"Conversion from non-residential to residential use"]
[]
[]
[null,null,null,"Yes",null,null,null,null,null,null,null,"Presidentially-declared major disaster area",null,null,null,null,null,null,null,null,null,null,null,null,null,null,null,null,null,null,null,null,null,null,null,null,null,null,null,null,null,null,null,null,null,null,null,null,null,null,null,null,null,null,null,"Yes",null,null,null,null,null,null,null,"Colonia"]
[]
[]
[null,null,null,"Yes",null,null,null,null,null,null,null,"Historic preservation area"]
[]
[]
[]
[]
[]
[]
[]
[]
[]
[]
[]
[]
[null,null,null,null,null,null,null,null,null,null,null,null,null,null,null,null,null,null,null,null,null,null,null,null,null,null,null,null,null,null,null,null,null,null,null,null,null,null,null,null,null,null,null,null,null,null,null,null,null,null,null,null,null,null,null,null,null,null,null,null,null,null,null,null,null,null,null,null,null,null,null,null,null,null,null,null,null,null,null,null,null,null,null,null,null,null,null,null,null,null,null,null,null,null,null,null,null,null,null,null,null,null,null,null,null,null,null,null,null,null,null,null,null,null,null,null,null,null,null,null,null,null,null,null,null,"PAGE 2"]
[]
[]
[null,null,null,null,null,null,null,null,null,null,null,null,null,null,null,null,null,null,null,null,null,null,null,null,null,null,null,null,null,null,null,null,null,null,null,null,null,null,null,null,null,null,null,null,null,null,null,null,null,null,null,null,null,null,null,null,null,null,null,null,null,null,null,null,null,null,null,null,null,null,null,null,null,null,null,null,null,null,null,null,null,null,null,null,null,null,null,null,null,null,null,null,null,null,"Contract #",null,null,null,null,null,null,null,null,null,null,null,{"$f":"CX2","v":0},null,null,null,"-HOME-",null,null,null,null,null,null,{"$f":"DI2","v":0}]
[]
[null,null,"Part B: Project information"]
[]
[null,null,null,null,null,null,null,null,null,null,null,null,null,null,null,null,null,null,null,null,null,null,null,null,null,null,null,null,null,null,null,null,null,null,null,null,null,null,null,null,null,null,null,null,null,null,null,null,null,null,null,null,null,null,null,null,null,null,null,null,null,null,null,null,null,null,null,null,null,null,null,null,null,null,null,null," "]
[null,null,"1. CHDO Type",null,null,null,null,null,null,null,null,null,null,null,null,null,null,null,null,null,null,null,null,null,"Owned",null,null,null,null,null,null,null,null,null,null,null,null,null,"Sponsored",null,null,null,null,null,null,null,null,null,null,null,null,null,null,null,null,null,"Developed",null,null,null,null,null,null,null,null,null,null,null,null,null,null,null,"2. Faith-Based Organization?",null,null,null,null,null,null,null,null,null,null,null,null,null,null,null,null,null,null,null,null,null,null,null,null,null,null,null,null,null,null,null,null,null,null,null,"Yes",null,null,null,null,null,null,null,null,null,null,"No"]
[]
[]
[]
[null,null,"3. Ownership Type (Check one)",null,null,null,null,null,null,null,null,null,null,null,null,null,null,null,null,null,null,null,null,null,null,null,null,null,null,null,null,null,null,null,null,null,null,"4. Project Type (Select one category 1-5)",null,null,null,null,null,null,null,null,null,null,null,null,null,null,null,null,null,null,null,null,null,null,null,null,null,null,null,null,null,null,null,null,null,null,null,null,null,null,null,null,null,null,null,null,null,null,null,null,null,null,null,null,"5. Property Type (Check one)"]
[]
[null,null,null,null,null,null,null,null,null,null,null,null,null,null,null,null,null,null,null,null,null,null,null,null,null,null," "]
[null,null,null,null,null,"Individual",null,null,null,null,null,null,null,null,null,null,null,null,null,null,null,null,null,null,null,null,null,null,null,null,null,null,null,null,null,null,null,null,null,null,"Rehabilitation Only",null,null,null,null,null,null,null,null,null,null,null,null,null,null,null,null,null,null,null,null,null,null,null,null,null,null,null,null,null,null,null,null,null,null,null,null,null,null,null,null,null,null,null,null,null,null,null,null,null,null,null,null,"1-4 Single Family"]
[]
[]
[null,null,null,null,null,"Partnership",null,null,null,null,null,null,null,null,null,null,null,null,null,null,null,null,null,null,null,null,null,null,null,null,null,null,null,null,null,null,null,null,null,null,"New Construction Only (not Applicable)",null,null,null,null,null,null,null,null,null,null,null,null,null,null,null,null,null,null,null,null,null,null,null,null,null,null,null,null,null,null,null,null,null,null,null,null,null,null,null,null,null,null,null,null,null,null,null,null,null,null,null,null,"Condominium"]
[]
[]
[null,null,null,null,null,"Corporation",null,null,null,null,null,null,null,null,null,null,null,null,null,null,null,null,null,null,null,null,null,null,null,null,null,null,null,null,null,null,null,null,null,null,"Acquisition Only",null,null,null,null,null,null,null,null,null,null,null,null,null,null,null,null,null,null,null,null,null,null,null,null,null,null,null,null,null,null,null,null,null,null,null,null,null,null,null,null,null,null,null,null,null,null,null,null,null,null,null,null,"Cooperative"]
[]
[]
[null,null,null,null,null,"Not for profit",null,null,null,null,null,null,null,null,null,null,null,null,null,null,null,null,null,null,null,null,null,null,null,null,null,null,null,null,null,null,null,null,null,null,"Acquisition & Rehabilitation",null,null,null,null,null,null,null,null,null,null,null,null,null,null,null,null,null,null,null,null,null,null,null,null,null,null,null,null,null,null,null,null,null,null,null,null,null,null,null,null,null,null,null,null,null,null,null,null,null,null,null,null,"Manufactured Home"]
[]
[]
[null,null,null,null,null,"Other",null,null,null,null,null,null,null,null,null,null,null,null,null,null,null,null,null,null,null,null,null,null,null,null,null,null,null,null,null,null,null,null,null,null,"Acquisition & New Construction"]
[]
[]
[null,null,"Part C: Performance Measurements"]
[]
[]
[null,null,"1. Does the Federal Housing Administration (FHA) insure the project?",null,null,null,null,null,null,null,null,null,null,null,null,null,null,null,null,null,null,null,null,null,null,null,null,null,null,null,null,null,null,null,null,null,null,null,null,null,null,null,null,null,null,null,null,null,null,null,null,null,null,null,null,null,null,null,null,null,null,null,null,null,null,null,null,null,null,null,null,null,null,null,null,null,null,"Yes",null,null,null,null,null,null,null,null,null,null,null,null,null,null,null,null,null,null,null,null,null,null,null,"No"]
[]
[]
[]
[null,null,"2. Period of affordability:",null,null,null,null,null,null,null,null,null,null,null,null,null,null,null,null,null,null,null,null,null,null,null,null,null,null,null,null,null,"5 Years",null,null,null,null,null,null,null,null,null,null,null,null,null,null,null,null,null,null,null,null,null,null,null,null,"10 Years",null,null,null,null,null,null,null,null,null,null,null,null,null,null,null,null,null,null,null,"15 Years",null,null,null,null,null,null,null,null,null,null,null,null,null,null,null,null,null,null,null,null,null,null,null,"Other",null,null,null,null,null,null,null,null,"Years "]
[]
[]
[]
[null,null,"3. First-Time Homebuyer is coming from subsidized housing?",null,null,null,null,null,null,null,null,null,null,null,null,null,null,null,null,null,null,null,null,null,null,null,null,null,null,null,null,null,null,null,null,null,null,null,null,null,null,null,null,null,null,null,null,null,null,null,null,null,null,null,null,null,null,null,null,null,null,null,null,null,null,null,null,null,null,null,null,null,null,null,null,null,null,"Yes",null,null,null,null,null,null,null,null,null,null,null,null,null,null,null,null,null,null,null,null,null,null,null,"No"]
[]
[]
[]
[null,null,"4. Counseling Provided?"]
[null,null,null,null,null,null,null,null,null,null,null,null,null,null,null,null,null,null,null,null,null,null,null,null,null,null,null,null,null,null,null,null,"No Counseling",null,null,null,null,null,null,null,null,null,null,null,null,null,null,null,null,null,null,null,null,null,null,null,null,"Pre-Counseling",null,null,null,null,null,null,null,null,null,null,null,null,null,null,null,null,null,null,null,"Post-Counseling",null,null,null,null,null,null,null,null,null,null,null,null,null,null,null,null,null,null,null,null,null,null,null,"Both"]
[null,null,"(required for FTHB)"]
[]
[]
[]
[null,null,null,null,null,null,null,null,null,null,null,null,null,null,null,null,null,null,null,null,null,null,null,null,null,null,null,null,null,null,null,null,null,null,null,null,null,null,null,null,null,null,"Total Units",null,null,null,null,null,null,null,null,null,null,null,null,null,null,null,null,null,null,null,null,null,null,null,null,null,null,null,null,null,null,null,null,null,null,null,null,null,null,null,null,null,"HOME-Assisted"]
[]
[]
[]
[null,null,"5. Completed Units"]
[]
[]
[]
[null,null,"Of The Units Completed",null,null,null,null,null,null,null,null,null,null,null,null,null,null,null,null,null,null,null,null,null,null,null,null,null,null,null,null,null,null,null,null,null,null,null,null,null,null,null,"Total Units",null,null,null,null,null,null,null,null,null,null,null,null,null,null,null,null,null,null,null,null,null,null,null,null,null,null,null,null,null,null,null,null,null,null,null,null,null,null,null,null,null,"HOME Units"]
[]
[]
[]
[null,null,"6. Meeting Energy Star Standard"]
[]
[]
[]
[null,null,"7. 504 Accesible"]
[]
[]
[null,"Part D: Household Characteristics.  ",null,null,null,null,null,null,null,null,null,null,null,null,null,null,null,null,null,null,null,null,null,null,null,null,null,null,null,null,null,null,null,null,null,null,null,null,null,null,null,"Complete one line for each unit to be assisted with HOME funds.  Enter one code only in each block.  Refer to code below where applicable"]
[]
[null,null,null,null,null,null,null,null,null,null,null,null,null,null,null,null,null,null,null,null,null,null,null,null,null,null,null,null,null,"Income Data",null,null,null,null,null,null,null,null,null,null,null,null,null,null,null,null,null,null,null,null,null,null,null,null,null,null,null,null,"Household Data"]
[]
[null,null,null,null,null,null,null,null,null,null,null,null,null,null,null,null,null,null,null,null,null,null,null,null,null,null,null,null,null,null,null,null,null,null,null,null,null,null,null,null,null,null,null,null,null,null,null,null,null,null,null,null,null,null,null,null,null,null,"Head of Household"]
[]
[null,null,"(2)",null,null,null,null,null,null,null,null,null,null,null,null,"(3)",null,null,null,null,null,null,null,null,null,null,null,null,null,null,"(7)",null,null,null,null,null,null,null,null,null,null,null,null,"(8)",null,null,null,null,null,null,null,null,null,null,null,null,null,null,null,"(9)",null,null,null,null,null,null,null,null,null,null,null,null,"(10)",null,null,null,null,null,null,null,null,null,null,null,null,"(11)",null,null,null,null,null,null,null,null,null,null,null,null,"(12)",null,null,null,null,null,null,null,null,null,null,null,null,"(13)"]
[]
[]
[null,null,"No. Of",null,null,null,null,null,null,null,null,null,null,null,null,"Occupancy",null,null,null,null,null,null,null,null,null,null,null,null,null,"Monthly Gross",null,null,null,null,null,null,null,null,null,null,null,null,"% of Area Median",null,null,null,null,null,null,null,null,null,null,null,null,null,null,null,"Hispanic",null,null,null,null,null,null,null,null,null,null,null,null,"Race",null,null,null,null,null,null,null,null,null,null,null,null,"Size of",null,null,null,null,null,null,null,null,null,null,null,null,"Type of",null,null,null,null,null,null,null,null,null,null,null,null,"Rental"]
[]
[null,null,"Bedrooms",null,null,null,null,null,null,null,null,null,null,null,null,null,null,null,null,null,null,null,null,null,null,null,null,null,null,"Income",null,null,null,null,null,null,null,null,null,null,null,null,"Code",null,null,null,null,null,null,null,null,null,null,null,null,null,null,null,null,null,null,null,null,null,null,null,null,null,null,null,null,null,null,null,null,null,null,null,null,null,null,null,null,null,"Household",null,null,null,null,null,null,null,null,null,null,null,null,"Household",null,null,null,null,null,null,null,null,null,null,null,null,"Assistance"]
[]
[]
[]
[null,null,null,null,null,null,null,null,null,null,null,null,null,null,null,null,null,null,null,null,null,null,null,null,null,null,null,null,null,null," "]
[]
[]
[]
[null,null,"(2)",null,null,null,null,null,null,null,null,null,null,null,null,null,null,null,null,null,null,null,"(8)",null,null,null,null,null,null,null,null,null,null,null,null,null,null,null,null,null,null,null,"(10)",null,null,null,null,null,null,null,null,null,null,null,null,null,null,null,null,null,null,null,null,null,null,null,null,null,null,null,null,null,null,null,null,null,null,null,null,null,null,null,null,"(11)",null,null,null,null,null,null,null,null,null,null,null,null,null,null,null,null,null,null,"(12)"]
[]
[null,null,"No. of Bedrooms",null,null,null,null,null,null,null,null,null,null,null,null,null,null,null,null,null,null,"% of Area Median",null,null,null,null,null,null,null,null,null,null,null,null,null,null,null,null,null,null,null,"Household Race",null,null,null,null,null,null,null,null,null,null,null,null,null,null,null,null,null,null,null,null,null,null,null,null,null,null,null,null,null,null,null,null,null,null,null,null,null,null,null,null,null,"Household Size",null,null,null,null,null,null,null,null,null,null,null,null,null,null,null,null,null,"Type of Household"]
[]
[null,null,"0 - 0 Bedroom",null,null,null,null,null,null,null,null,null,null,null,null,null,null,null,null,null,null,null,"1 - 0-30%",null,null,null,null,null,null,null,null,null,null,null,null,null,null,null,null,null,null,null,"09 - Vacant Unit",null,null,null,null,null,null,null,null,null,null,null,null,null,null,null,null,null,null,null,null,null,null,null,null,null,null,null,null,null,null,null,null,null,null,null,null,null,null,null,null,null,"1 - 1 Person",null,null,null,null,null,null,null,null,null,null,null,null,null,null,null,null,null,"1 - Single/non-Elderly"]
[]
[null,null,null,null,null,null,null,null,null,null,null,null,null,null,null,null,null,null,null,null,null,null,null,null,null,null,null,null,null,null,null,null,null,null,null,null,null,null,null,null,null,null,"10 - Managers Unit",null,null,null,null,null,null,null,null,null,null,null,null,null,null,null,null,null,null,null,null,null,null,null,null,null,null,null,null,null,null,null,null,null,null,null,null,null,null,null,null,null,null,null,null,null,null,null,null,null,null,null,null,null,null,null,null,null,null,null,"2 - Elderly"]
[null,null,"1 - 1 Bedroom",null,null,null,null,null,null,null,null,null,null,null,null,null,null,null,null,null,null,null,"2 - 30-50%",null,null,null,null,null,null,null,null,null,null,null,null,null,null,null,null,null,null,null,null,null,null,null,null,null,null,null,null,null,null,null,null,null,null,null,null,null,null,null,null,null,null,null,null,null,null,null,null,null,null,null,null,null,null,null,null,null,null,null,null,null,"2 - 2 Persons"]
[null,null,null,null,null,null,null,null,null,null,null,null,null,null,null,null,null,null,null,null,null,null,null,null,null,null,null,null,null,null,null,null,null,null,null,null,null,null,null,null,null,null,"11 - White",null,null,null,null,null,null,null,null,null,null,null,null,null,null,null,null,null,null,null,null,null,null,null,null,null,null,null,null,null,null,null,null,null,null,null,null,null,null,null,null,null,null,null,null,null,null,null,null,null,null,null,null,null,null,null,null,null,null,null,"3 - Related/Single Parent"]
[]
[null,null,"2 - 2 Bedrooms",null,null,null,null,null,null,null,null,null,null,null,null,null,null,null,null,null,null,null,"3 - 50-60%",null,null,null,null,null,null,null,null,null,null,null,null,null,null,null,null,null,null,null,"12 - Black/African American",null,null,null,null,null,null,null,null,null,null,null,null,null,null,null,null,null,null,null,null,null,null,null,null,null,null,null,null,null,null,null,null,null,null,null,null,null,null,null,null,null,"3 - 3 Persons",null,null,null,null,null,null,null,null,null,null,null,null,null,null,null,null,null,"4 - Related/Two Parent"]
[]
[null,null,null,null,null,null,null,null,null,null,null,null,null,null,null,null,null,null,null,null,null,null,null,null,null,null,null,null,null,null,null,null,null,null,null,null,null,null,null,null,null,null,"13 - Asian",null,null,null,null,null,null,null,null,null,null,null,null,null,null,null,null,null,null,null,null,null,null,null,null,null,null,null,null,null,null,null,null,null,null,null,null,null,null,null,null,null,null,null,null,null,null,null,null,null,null,null,null,null,null,null,null,null,null,null,"5 - Other"]
[null,null,"3 - 3 Bedrooms",null,null,null,null,null,null,null,null,null,null,null,null,null,null,null,null,null,null,null,"4 - 60-80%",null,null,null,null,null,null,null,null,null,null,null,null,null,null,null,null,null,null,null,null,null,null,null,null,null,null,null,null,null,null,null,null,null,null,null,null,null,null,null,null,null,null,null,null,null,null,null,null,null,null,null,null,null,null,null,null,null,null,null,null,null,"4 - 4 Persons"]
[null,null,null,null,null,null,null,null,null,null,null,null,null,null,null,null,null,null,null,null,null,null,null,null,null,null,null,null,null,null,null,null,null,null,null,null,null,null,null,null,null,null,"14 - American Indian/Alaskan Native",null,null,null,null,null,null,null,null,null,null,null,null,null,null,null,null,null,null,null,null,null,null,null,null,null,null,null,null,null,null,null,null,null,null,null,null,null,null,null,null,null,null,null,null,null,null,null,null,null,null,null,null,null,null,null,null,null,null,null,"9 - Vacant"]
[]
[null,null,"4 - 4 Bedrooms",null,null,null,null,null,null,null,null,null,null,null,null,null,null,null,null,null,null,null,"9 - Vacant",null,null,null,null,null,null,null,null,null,null,null,null,null,null,null,null,null,null,null,"15 - Native Hawaiian/Other Pacific Islander",null,null,null,null,null,null,null,null,null,null,null,null,null,null,null,null,null,null,null,null,null,null,null,null,null,null,null,null,null,null,null,null,null,null,null,null,null,null,null,null,null,"5 - 5 Persons"]
[null,null,null,null,null,null,null,null,null,null,null,null,null,null,null,null,null,null,null,null,null,null,null,null,null,null,null,null,null,null,null,null,null,null,null,null,null,null,null,null,null,null,null,null,null,null,null,null,null,null,null,null,null,null,null,null,null,null,null,null,null,null,null,null,null,null,null,null,null,null,null,null,null,null,null,null,null,null,null,null,null,null,null,null,null,null,null,null,null,null,null,null,null,null,null,null,null,null,null,null,null,"(13)"]
[null,null,null,null,null,null,null,null,null,null,null,null,null,null,null,null,null,null,null,null,null,null,null,null,null,null,null,null,null,null,null,null,null,null,null,null,null,null,null,null,null,null,"16 - American Indian/Alaskan Native & White"]
[null,null,"5 - 5 or more Bedrooms",null,null,null,null,null,null,null,null,null,null,null,null,null,null,null,null,null,null,null,"(9)",null,null,null,null,null,null,null,null,null,null,null,null,null,null,null,null,null,null,null,null,null,null,null,null,null,null,null,null,null,null,null,null,null,null,null,null,null,null,null,null,null,null,null,null,null,null,null,null,null,null,null,null,null,null,null,null,null,null,null,null,null,"6 - 6 Persons",null,null,null,null,null,null,null,null,null,null,null,null,null,null,null,null,"Rental Assistance"]
[null,null,null,null,null,null,null,null,null,null,null,null,null,null,null,null,null,null,null,null,null,null,null,null,null,null,null,null,null,null,null,null,null,null,null,null,null,null,null,null,null,null,"17 - Asian & White"]
[null,null,null,null,null,null,null,null,null,null,null,null,null,null,null,null,null,null,null,null,null,"Hispanic Ethnicity",null,null,null,null,null,null,null,null,null,null,null,null,null,null,null,null,null,null,null,null,null,null,null,null,null,null,null,null,null,null,null,null,null,null,null,null,null,null,null,null,null,null,null,null,null,null,null,null,null,null,null,null,null,null,null,null,null,null,null,null,null,null,null,null,null,null,null,null,null,null,null,null,null,null,null,null,null,null,null,null,"1 - Section 8"]
[null,null,"(3)",null,null,null,null,null,null,null,null,null,null,null,null,null,null,null,null,null,null,null,null,null,null,null,null,null,null,null,null,null,null,null,null,null,null,null,null,null,null,null,"18 - Black/African American & White",null,null,null,null,null,null,null,null,null,null,null,null,null,null,null,null,null,null,null,null,null,null,null,null,null,null,null,null,null,null,null,null,null,null,null,null,null,null,null,null,null,"7 - 7 Persons"]
[null,null,null,null,null,null,null,null,null,null,null,null,null,null,null,null,null,null,null,null,null,"Head of Household",null,null,null,null,null,null,null,null,null,null,null,null,null,null,null,null,null,null,null,null,null,null,null,null,null,null,null,null,null,null,null,null,null,null,null,null,null,null,null,null,null,null,null,null,null,null,null,null,null,null,null,null,null,null,null,null,null,null,null,null,null,null,null,null,null,null,null,null,null,null,null,null,null,null,null,null,null,null,null,null,"2 - HOME TBRA"]
[null,null,"Occupancy",null,null,null,null,null,null,null,null,null,null,null,null,null,null,null,null,null,null,null,null,null,null,null,null,null,null,null,null,null,null,null,null,null,null,null,null,null,null,null,"19 - American Indian/Alaskan Native &"]
[null,null,null,null,null,null,null,null,null,null,null,null,null,null,null,null,null,null,null,null,null,null,null,null,null,null,null,null,null,null,null,null,null,null,null,null,null,null,null,null,null,null,null,null,null,null,null,null,null,null,null,null,null,null,null,null,null,null,null,null,null,null,null,null,null,null,null,null,null,null,null,null,null,null,null,null,null,null,null,null,null,null,null,null,"8 - 8 Persons",null,null,null,null,null,null,null,null,null,null,null,null,null,null,null,null,null,"3 - OTHER"]
[null,null,null,null,null,null,null,null,null,null,null,null,null,null,null,null,null,null,null,null,null,null,"Y - Hispanic",null,null,null,null,null,null,null,null,null,null,null,null,null,null,null,null,null,null,null,null,null,null,null,"African American"]
[null,null,"1 - Tenant",null,null,null,null,null,null,null,null,null,null,null,null,null,null,null,null,null,null,null,null,null,null,null,null,null,null,null,null,null,null,null,null,null,null,null,null,null,null,null,null,null,null,null,null,null,null,null,null,null,null,null,null,null,null,null,null,null,null,null,null,null,null,null,null,null,null,null,null,null,null,null,null,null,null,null,null,null,null,null,null,null,null,null,null,null,null,null,null,null,null,null,null,null,null,null,null,null,null,null,"4 - None"]
[null,null,null,null,null,null,null,null,null,null,null,null,null,null,null,null,null,null,null,null,null,null,null,null,null,null,null,null,null,null,null,null,null,null,null,null,null,null,null,null,null,null,"20 -Other Multiracial",null,null,null,null,null,null,null,null,null,null,null,null,null,null,null,null,null,null,null,null,null,null,null,null,null,null,null,null,null,null,null,null,null,null,null,null,null,null,null,null,null,"9 - Vacant"]
[null,null,null,null,null,null,null,null,null,null,null,null,null,null,null,null,null,null,null,null,null,null,"N - Not Hispanic",null,null,null,null,null,null,null,null,null,null,null,null,null,null,null,null,null,null,null,null,null,null,null,null,null,null,null,null,null,null,null,null,null,null,null,null,null,null,null,null,null,null,null,null,null,null,null,null,null,null,null,null,null,null,null,null,null,null,null,null,null,null,null,null,null,null,null,null,null,null,null,null,null,null,null,null,null,null,null,"9 - Vacant Unit"]
[null,null,"2 - Owner"]
[]
[null,"PROJECT FUNDING SOURCE DETAIL",null,null,null,null,null,null,null,null,null,null,null,null,null,null,null,null,null,null,null,null,null,null,null,null,null,null,null,null,null,null,null,null,null,null,null,null,null,null,null,null,null,null,null,null,null,null,null,null,null,null,null,null,null,null,null,null,null,null,null,null,null,null,null,null,null,null,null,null,null,null,null,null,null,null,null,null,null,null,null,null,null,null,null,null,null,null,null,null,null,null,null,null,null,null,null,null,null,null,null,null,null,null,null,null,null,null,null,null,null,null,null,null,null,null,null,null,null,null,null,null,null,null,null,"PAGE 3"]
[null,null,null,null,null,null,null,null,null,null,null,null,null,null,null,null,null,null,null,null,null,null,null,null,null,null,null,null,null,null,null,null,null,null,null,null,null,null,null,null,null,null,null,null,null,null,null,null,null,null,null,null,null,null,null,null,null,null,null,null,null,null,null,null,null,null,null,null,null,null,null,null,null,null,null,null,null,null,null,null,null,null,null,null,null,null,null,null,null,null,null,null,null,null,"Contract #",null,null,null,null,null,null,null,null,null,null,null,{"$f":"CX2","v":0},null,null,null,"-HOME-",null,null,null,null,null,null,{"$f":"DI2","v":0}]
[null,"For Submittal with each Project Set-Up/Completion Report and any subsequent revisions"]
[]
[null,"Part E Project Funding and Program Income"]
[]
[null,null,"1. State Recipients are required to identify, at least once per month, their undistributed balance of Program Income/Recaptured funds (\"Balance\"). Please providen the following information:"]
[]
[]
[null,null,null,"a) Date of Balance:",null,null,null,null,null,null,null,null,null,null,null,null,null,null,null,null,null,null," ",null,null,null,null,null,null,null,null,null,null,null,null,null,null,null,null,null,null,null,null,null,null,null,null,null,null,null,null,null,null,null,null,null,null,null,null,null,null,null,"b) Balance (If balance is Zero enter 0): "]
[]
[]
[]
[null,null,"2. Of the Total Project Cost, provide the following breakdown according to funding source. Funding Source Codes and Descriptions are available on the Project Funding Source Detail Listing (Appendix I-D-5) form."]
[null,"Funding Source Detail"]
[]
[null,"(1)",null,null,null,null,null,null,null,null,"(2)",null,null,null,null,null,null,null,null,"(3)",null,null,null,null,null,null,null,null,null,null,null,null,null,null,null,null,null,null,null,null,null,null,null,null,null,null,null,null,null,null,null,null,null,null,null,null,"(4)",null,null,null,null,null,null,null,null,null,null,null,null,null,null,null,null,null,null,null,null,null,null,null,null,null,null,null,null,"(5)",null,null,null,null,null,null,null,null,null,null,null,null,null,null,null,null,null,"(6)"]
[]
[null,"Funding ",null,null,null,null,null,null,null,null,"Check",null,null,null,null,null,null,null,null,"Funding Source Description ",null,null,null,null,null,null,null,null,null,null,null,null,null,null,null,null,null,null,null,null,null,null,null,null,null,null,null,null,null,null,null,null,null,null,null,null,"Name of Source",null,null,null,null,null,null,null,null,null,null,null,null,null,null,null,null,null,null,null,null,null,null,null,null,null,null,null,null,"Amount(s)",null,null,null,null,null,null,null,null,null,null,null,null,null,null,null,null,null,"Amount(s)"]
[]
[null,"Source",null,null,null,null,null,null,null,null,"Here",null,null,null,null,null,null,null,null,"(Redevelopment Agency, State HCD,",null,null,null,null,null,null,null,null,null,null,null,null,null,null,null,null,null,null,null,null,null,null,null,null,null,null,null,null,null,null,null,null,null,null,null,null,"(Union Bank, County of",null,null,null,null,null,null,null,null,null,null,null,null,null,null,null,null,null,null,null,null,null,null,null,null,null,null,null,null,"Part of Project",null,null,null,null,null,null,null,null,null,null,null,null,null,null,null,null,null,"Not Part of"]
[]
[null,"Code",null,null,null,null,null,null,null,null,"If",null,null,null,null,null,null,null,null,"State Other, Federal, Tax Credit,",null,null,null,null,null,null,null,null,null,null,null,null,null,null,null,null,null,null,null,null,null,null,null,null,null,null,null,null,null,null,null,null,null,null,null,null,"Santa Cruz Redevelopment",null,null,null,null,null,null,null,null,null,null,null,null,null,null,null,null,null,null,null,null,null,null,null,null,null,null,null,null,"Total",null,null,null,null,null,null,null,null,null,null,null,null,null,null,null,null,null,"Project Total"]
[]
[null,null,null,null,null,null,null,null,null,null,"Match",null,null,null,null,null,null,null,null,"Private, Local or other (Specify) ",null,null,null,null,null,null,null,null,null,null,null,null,null,null,null,null,null,null,null,null,null,null,null,null,null,null,null,null,null,null,null,null,null,null,null,null,"Agency, Cal Home, etc.)",null,null,null,null,null,null,null,null,null,null,null,null,null,null,null,null,null,null,null,null,null,null,null,null,null,null,null,null,"(no Cents)"]
[]
[]
[]
[null,null,"01",null,null,null,null,null,null,null,null,null,null,null,null,null,null,null,null,null,"HOME Funds-"]
[]
[]
[]
[null,null,"11",null,null,null,null,null,null,null,null,null,null,null,null,null,null,null,null,null,"HOME Funds- Activity Delivery Costs"]
[]
[]
[]
[null,null,"02",null,null,null,null,null,null,null,null,null,null,null,null,null,null,null,null,null,"HOME Funds- Grants"]
[]
[]
[]
[null,null,"N/A",null,null,null,null,null,null,null,null,null,null,null,null,null,null,null,null,null,"Total HOME Funds",null,null,null,null,null,null,null,null,null,null,null,null,null,null,null,null,null,null,null,null,null,null,null,null,null,null,null,null,null,null,null,null,null,null,null,null,null,null,null,null,null,null,null,null,null,null,null,null,null,null,null,null,null,null,null,null,null,null,null,null,null,null,null,null,null,{"$f":"SUM(CI274,CI270,CI266)","v":0}]
[]
[]
[]
[null,null,"Y",null,null,null,null,null,null,null,null,null,null,null,null,null,null,null,null,null,"Local Program Income (PI)"]
[]
[]
[null,null,null,null,null," "]
[null,null,"Y",null,null,null,null,null,null,null,null,null,null,null,null,null,null,null,null,null,"Local PI - Activity Delivery Costs"]
[]
[]
[null,null,null,null,null," "]
[null,null,"Y",null,null,null,null,null,null,null,null,null,null,null,null,null,null,null,null,null,"Local PI - Grants"]
[]
[]
[]
[null,null,"N/A",null,null,null,null,null,null,null,null,null,null,null,null,null,null,null,null,null,"Total Program Income",null,null,null,null,null,null,null,null,null,null,null,null,null,null,null,null,null,null,null,null,null,null,null,null,null,null,null,null,null,null,null,null,null,null,null,null," ",null,null,null,null,null,null,null,null,null,null,null,null,null,null,null,null,null,null,null,null,null,null,null,null,null,null,null,null,{"$f":"SUM(CI290,CI286,CI282)","v":0}]
[]
[]
[]
[null,null,null,null,null,null,null,null,null,null,null,null,null,null,null,null,null,null,null,null," ",null,null,null,null,null,null,null,null,null,null,null,null,null,null,null,null,null,null,null,null,null,null,null,null,null,null,null,null,null,null,null,null,null,null,null,null," ",null,null,null,null,null,null,null,null,null,null,null,null,null,null,null,null,null,null,null,null,null,null,null,null,null,null,null,null,null,null,null,null,null,null,null,null,null,null,null,null,null,null,null,null,null,null," "]
[]
[]
[]
[null,null,null,null,null,null,null,null,null,null,null,null,null,null,null,null,null,null,null,null," ",null,null,null,null,null,null,null,null,null,null,null,null,null,null,null,null,null,null,null,null,null,null,null,null,null,null,null,null,null,null,null,null,null,null,null,null," ",null,null,null,null,null,null,null,null,null,null,null,null,null,null,null,null,null,null,null,null,null,null,null,null,null,null,null,null,null,null,null,null,null,null,null,null,null,null,null,null,null,null,null,null,null,null," "]
[]
[]
[]
[null,null,null,null,null,null,null,null,null,null,null,null,null,null,null,null,null,null,null,null," ",null,null,null,null,null,null,null,null,null,null,null,null,null,null,null,null,null,null,null,null,null,null,null,null,null,null,null,null,null,null,null,null,null,null,null,null," ",null,null,null,null,null,null,null,null,null,null,null,null,null,null,null,null,null,null,null,null,null,null,null,null,null,null,null,null,null,null,null,null,null,null,null,null,null,null,null,null,null,null,null,null,null,null," "]
[]
[]
[]
[null,null,null,null,null,null,null,null,null,null,null,null,null,null,null,null,null,null,null,null," ",null,null,null,null,null,null,null,null,null,null,null,null,null,null,null,null,null,null,null,null,null,null,null,null,null,null,null,null,null,null,null,null,null,null,null,null," ",null,null,null,null,null,null,null,null,null,null,null,null,null,null,null,null,null,null,null,null,null,null,null,null,null,null,null,null,null,null,null,null,null,null,null,null,null,null,null,null,null,null,null,null,null,null," "]
[]
[]
[]
[null,null,null,null,null,null,null,null,null,null,null,null,null,null,null,null,null,null,null,null," ",null,null,null,null,null,null,null,null,null,null,null,null,null,null,null,null,null,null,null,null,null,null,null,null,null,null,null,null,null,null,null,null,null,null,null,null," ",null,null,null,null,null,null,null,null,null,null,null,null,null,null,null,null,null,null,null,null,null,null,null,null,null,null,null,null,null,null,null,null,null,null,null,null,null,null,null,null,null,null,null,null,null,null," "]
[]
[]
[]
[null,null,null,null,null,null,null,null,null,null,null,null,null,null,null,null,null,null,null,null," ",null,null,null,null,null,null,null,null,null,null,null,null,null,null,null,null,null,null,null,null,null,null,null,null,null,null,null,null,null,null,null,null,null,null,null,null," ",null,null,null,null,null,null,null,null,null,null,null,null,null,null,null,null,null,null,null,null,null,null,null,null,null,null,null,null,null,null,null,null,null,null,null,null,null,null,null,null,null,null,null,null,null,null," "]
[]
[]
[]
[null,null,null,null,null,null,null,null,null,null,null,null,null,null,null,null,null,null,null,null," ",null,null,null,null,null,null,null,null,null,null,null,null,null,null,null,null,null,null,null,null,null,null,null,null,null,null,null,null,null,null,null,null,null,null,null,null," ",null,null,null,null,null,null,null,null,null,null,null,null,null,null,null,null,null,null,null,null,null,null,null,null,null,null,null,null,null,null,null,null,null,null,null,null,null,null,null,null,null,null,null,null,null,null," "]
[]
[]
[]
[null,null,null,null,null,null,null,null,null,null,null,null,null,null,null,null,null,null,null,null," ",null,null,null,null,null,null,null,null,null,null,null,null,null,null,null,null,null,null,null,null,null,null,null,null,null,null,null,null,null,null,null,null,null,null,null,null," ",null,null,null,null,null,null,null,null,null,null,null,null,null,null,null,null,null,null,null,null,null,null,null,null,null,null,null,null,null,null,null,null,null,null,null,null,null,null,null,null,null,null,null,null,null,null," "]
[]
[]
[]
[null,null,null,null,null,null,null,null,null,null,null,null,null,null,null,null,null,null,null,null," ",null,null,null,null,null,null,null,null,null,null,null,null,null,null,null,null,null,null,null,null,null,null,null,null,null,null,null,null,null,null,null,null,null,null,null,null," ",null,null,null,null,null,null,null,null,null,null,null,null,null,null,null,null,null,null,null,null,null,null,null,null,null,null,null,null,null,null,null,null,null,null,null,null,null,null,null,null,null,null,null,null,null,null," "]
[]
[]
[]
[null,null,null,null,null,null,null,null,null,null,null,null,null,null,null,null,null,null,null,null," ",null,null,null,null,null,null,null,null,null,null,null,null,null,null,null,null,null,null,null,null,null,null,null,null,null,null,null,null,null,null,null,null,null,null,null,null," ",null,null,null,null,null,null,null,null,null,null,null,null,null,null,null,null,null,null,null,null,null,null,null,null,null,null,null,null,null,null,null,null,null,null,null,null,null,null,null,null,null,null,null,null,null,null," "]
[]
[]
[]
[null,null,null,null,null,null,null,null,null,null,null,null,null,null,null,null,null,null,null,null," ",null,null,null,null,null,null,null,null,null,null,null,null,null,null,null,null,null,null,null,null,null,null,null,null,null,null,null,null,null,null,null,null,null,null,null,null," ",null,null,null,null,null,null,null,null,null,null,null,null,null,null,null,null,null,null,null,null,null,null,null,null,null,null,null,null,null,null,null,null,null,null,null,null,null,null,null,null,null,null,null,null,null,null," "]
[]
[null,null,null,null,null,null,null,null,null,null,null,null,null,null,null,null,null,null,null,null,null,null,null,null,null,null,null,null,null,null,null,null,null,null,null,null,null,null,null,null,null,null,null,null,null,null,null,null,null,null,null,null,null,null,null,null,null,null,null,null,null,null,null,null,null,null,null,null,null,null,null,null,null,null,null,null,null,null,null,null,null," "]
[]
[]
[null,null,null,"Total Project Costs",null,null,null,null,null,null,null,null,null,null,null,null,null,null,null,null,null,null,null,null,null,null,null,null,null,null,null,null,null,null,null,null,null,null,null,null,null,null,null,null,null,null,null,null,null,null,null,null,null,null,null,null,null,null,null,null,null,null,null,null,null,null,null,null,null,null,null,null,null,null,null,null,null,null,null,null,null,null,null,null,null,null,{"$f":"SUM(CI338,CI334,CI330,CI326,CI322,CI318,CI314,CI310,CI306,CI302,CI298,CI294,CI278)","v":0},null,null,null,null,null,null,null,null,null,null,null,null,null,null,null,null,null,{"$f":"SUM(DA338,DA334,DA330,DA326,DA322,DA318,DA314,DA310,DA306,DA302,DA298,)","v":0}]
[]
[]
[]
[]
[]
[null,null,null,null,null,null,null,null,null,null,null,null,null,null,null,null,null,null,null,null,null,null,null,null,null,null,null,null,null,null,null,null,null,null,null,null,null,null,null,null,null,null,null,null,null,null,null,null,null,null,null,null,null,null,null,null,null,null,null,null,null,null,null,null,null,null,null,null,null,null,null,null,null,null,null,null,null,null,null,null,null,null,null,null,null,null,null,null,null,null,null,null,null,null,null,null,null,null,null,null,null,null,null,null,null,null,null,null,null,null,null,null,null,null,null,null,null,null,null,null,null,null,null,null,null,"PAGE 4"]
[null,null,null,null,null,null,null,null,null,null,null,null,null,null,null,null,null,null,null,null,null,null,null,null,null,null,null,null,null,null,null,null,null,null,null,null,null,null,null,null,null,null,null,null,null,null,null,null,null,null,null,null,null,null,null,null,null,null,null,null,null,null,null,null,null,null,null,null,null,null,null,null,null,null,null,null,null,null,null,null,null,null,null,null,null,null,null,null,null,null,null,null,null,null,"Contract #",null,null,null,null,null,null,null,null,null,null,null,{"$f":"CX2","v":0},null,null,null,"-HOME-",null,null,null,null,null,null,{"$f":"DI2","v":0}]
[]
[null,"Part F: Financial Structure of Project"]
[]
[null,"Section 1: Home Value/limits"]
[]
[]
[null,null,"1. All Projects",null,null,null,null,null,null,null,null,null,null,null,null,null,null,null,null,null,null,null,null,null,null,null,null,null,null,null,null,null,null,"Maximum Purchase Price/After-Rehabilitation Value Limit (Appendix I-B-1)"]
[]
[]
[]
[null,null,"2.",null,"Homeownership",null,null,null,null,null,null,null,null,null,null,null,null,null,null,null,null,null,null,null,null,null,null,null,null,null,null,null,null,"Actual Value of House After Rehabilitation"]
[]
[null,null,null,null,"Rehabilitation Only"]
[]
[]
[null,null,"3.",null,"FTHB Homebuyer",null,null,null,null,null,null,null,null,null,null,null,null,null,null,null,null,null,null,null,null,null,null,null,null,null,null,null,null,"Purchase Price"]
[]
[null,null,null,null,"Projects Only"]
[]
[null,"Section 2: Project Financing"]
[]
[null,null,"1. HOME FUNDS Only",null,null,null,null,null,null,null,null,null,null,null,null,null,null,null,null,null,null,null,null,null,null,null,null,null,null,null,null,null,null,"1. Deferred Payment Loan",null,null,null,null,null,null,null,null,null,null,null,null,null,null,null,null,null,null,null,null,null,null,null,null,null,null,null,null,null,"Annual Interest Rate",null,null,null,null,null,null,null,null,null,null,null,null,null,null,null,null,null,null,null,null,null,null,null,null,"Loan Period",null,null,null,null,null,null,null,null,null,null,null,null,null,null,null,null,null,null,null,{"$f":"IF(DU76=3, CI266, \"\")","v":""}]
[]
[null,null,"1A.",null,null,null,"Property Costs -",null,null,null,null,null,null,null,null,null,null,null,null,null,null,null,null,null,null,null,null,null,null,null,null,null,null,null,null,null,null,null,null,null,null,null,null,null,null,null,null,null,null,null,null,null,null,null,null,null,null,null,null,null,null,null,null,null,null,null," ",null,null,null,null,null,null,null,null,null,null,null,null,"%",null,null,null,null,null,null,null,null,null,null,null,null,null,null,null,null,"Years"]
[]
[null,null,null,null,null,null,"Rehabilitation Costs",null,null,null,null,null,null,null,null,null,null,null,null,null,null,null,null,null,null,null,null,null,null,null,null,null,null,null,null,null,null,null,null,null,null,null,null,null,null,null,null,null,null,null,null,null,null,null,null,null,null,null,null,null,null,null,null,null,null,null,null,null,null,null,null,null,null,null,null,null,null,null,null,null,null,null,null,null,null,null,null,null,null,null,null,null,null,null,null,null,null,null,null,null,null,null,null,null,null,null,null,null,{"$f":"IF(DU76=3, CI274, \"\")","v":""}]
[null,null,null,null,null,null,null,null,null,null,null,null,null,null,null,null,null,null,null,null,null,null,null,null,null,null,null,null,null,null,null,null,null,"2. Grant (Type:",null,null,null,null,null,null,null,null,null,null,null,null,null,null,null,null,null,null,null,null,null,null,null,null,null,null,null,null,null,null,null,null,null,null,null,null,null,null,null,null,null,null,null,null,null,null,null,null,null,null,null,null,null,null,null,null,null,null,null,null,null,null,null,null,null,null,null,null,null,null,null,")"]
[]
[]
[null,null,null,null,null,null,null,null,null,null,null,null,null,null,null,null,null,null,null,null,null,null,null,null,null,null,null,null,null,null,null,null,null,null,null,null,null,null,null,null,null,null,null,null,null,null,null,null,null,null,null,null,null,null,null,null,null,null,null,null,null,null,null,null,null,null,null,null,null,null,null,null,null,null,null,null,null,null,null,null,null,null,null,null,null,null,null,null,null,null,null,null,null,null,null,null,null,null,null,null,null,null,null,null,null,null,null,null,{"$f":"IF(DU76=3, CI270, \"\")","v":""}]
[null,null,null,null,null,null,null,null,null,null,null,null,null,null,null,null,null,null,null,null,null,null,null,null,null,null,null,null,null,null,null,null,null,"3. Other/Activity Delivery Costs"]
[]
[]
[null,null,null,null,null,null,null,null,null,null,null,null,null,null,null,null,null,null,null,null,null,null,null,null,null,null,null,null,null,null,null,null,null,null,null,null,null,null,null,null,null,null,null,null,null,null,null,null,null,null,null,null,null,null,null,null,null,null,null,null,null,null,null,null,null,null,null,null,null,null,null,null,null,null,null,null,null,null,null,null,null,null,null,null,null,null,null,null,null,null,null,null,null,null,null,null,null,null,null,null,null,null,null,null,null,null,null,null,{"$f":"SUM(DE372,DE376,DE380,)","v":0}]
[null,null,null,null,null,null,null,null,null,null,null,null,null,null,null,null,null,null,null,null,null,null,null,null,null,null,null,null,null,null,null,null,null,"4. Total Homeownership/Rehabilitation Costs"]
[]
[null,null,"1B.",null,null,null,"First-time Homebuyer",null,null,null,null,null,null,null,null,null,null,null,null,null,null,null,null,null,null,null,null,null,null,null,null,null,null,"1. Deferred Payment Loan",null,null,null,null,null,null,null,null,null,null,null,null,null,null,null,null,null,null,null,null,null,null,null,null,null,null,null,null,null,"Annual Interest Rate",null,null,null,null,null,null,null,null,null,null,null,null,null,null,null,null,null,null,null,null,null,null,null,null,"Loan Period",null,null,null,null,null,null,null,null,null,null,null,null,null,null,null,null,null,null,null,{"$f":"IF(DU76<3, CI266,\"\")","v":0}]
[]
[null,null,null,null,null,null,"Assistance",null,null,null,null,null,null,null,null,null,null,null,null,null,null,null,null,null,null,null,null,null,null,null,null,null,null,null,null,null,null,null,null,null,null,null,null,null,null,null,null,null,null,null,null,null,null,null,null,null,null,null,null,null,null,null,null,null,null,null,null,null,null,null,null,null,null,null,null,null,null,null,null,"%",null,null,null,null,null,null,null,null,null,null,null,null,null,null,null,null,"Years"]
[]
[null,null,null,null,null,null,null,null,null,null,null,null,null,null,null,null,null,null,null,null,null,null,null,null,null,null,null,null,null,null,null,null,null,null,null,null,null,null,null,null,null,null,null,null,null,null,null,null,null,null,null,null,null,null,null,null,null,null,null,null,null,null,null,null,null,null,null,null,null,null,null,null,null,null,null,null,null,null,null,null,null,null,null,null,null,null,null,null,null,null,null,null,null,null,null,null,null,null,null,null,null,null,null,null,null,null,null,null,{"$f":"IF(DU76<3, CI274, \"\")","v":0}]
[null,null,null,null,null,null,null,null,null,null,null,null,null,null,null,null,null,null,null,null,null,null,null,null,null,null,null,null,null,null,null,null,null,"2. Grant (Type:",null,null,null,null,null,null,null,null,null,null,null,null,null,null,null,null,null,null,null,null,null,null,null,null,null,null,null,null,null,null,null,null,null,null,null,null,null,null,null,null,null,null,null,null,null,null,null,null,null,null,null,null,null,null,null,null,null,null,null,null,null,null,null,null,null,null,null,null,null,null,null,")"]
[]
[]
[null,null,null,null,null,null,null,null,null,null,null,null,null,null,null,null,null,null,null,null,null,null,null,null,null,null,null,null,null,null,null,null,null,null,null,null,null,null,null,null,null,null,null,null,null,null,null,null,null,null,null,null,null,null,null,null,null,null,null,null,null,null,null,null,null,null,null,null,null,null,null,null,null,null,null,null,null,null,null,null,null,null,null,null,null,null,null,null,null,null,null,null,null,null,null,null,null,null,null,null,null,null,null,null,null,null,null,null,{"$f":"IF(DU76<3, CI270, \"\")","v":0}]
[null,null,null,null,null,null,null,null,null,null,null,null,null,null,null,null,null,null,null,null,null,null,null,null,null,null,null,null,null,null,null,null,null,"3. Other/Activity Delivery Costs"]
[]
[]
[null,null,null,null,null,null,null,null,null,null,null,null,null,null,null,null,null,null,null,null,null,null,null,null,null,null,null,null,null,null,null,null,null,null,null,null,null,null,null,null,null,null,null,null,null,null,null,null,null,null,null,null,null,null,null,null,null,null,null,null,null,null,null,null,null,null,null,null,null,null,null,null,null,null,null,null,null,null,null,null,null,null,null,null,null,null,null,null,null,null,null,null,null,null,null,null,null,null,null,null,null,null,null,null,null,null,null,null,{"$f":"SUM(DE395,DE391,DE387)","v":0}]
[null,null,null,null,null,null,null,null,null,null,null,null,null,null,null,null,null,null,null,null,null,null,null,null,null,null,null,null,null,null,null,null,null,"4. Total Homeownership/Rehabilitation Costs",null,null,null,null,null,null,null,null,null,null,null,null,null,null,null,null,null,null,null,null,null,null,null,null,null,null,null,null,null,null,null,null,null,null,null,null,null,null,null,null,null,null,null,null,null,null,null,null,null,null,null,null,null,null,null,null,null,null,null,null,null,null,null,null,null,null,null,null," "]
[]
[null,null,"1C. Other HOME Funds",null,null,null,null,null,null,null,null,null,null,null,null,null,null,null,null,null,null,null,null,null,null,null,null,null,null,null,null,null,null,null,null,null,null,null,null,null,null,null,null,null,null,null,null,null,null,null,null,null,null,null,null,null,null,null,null,null,null,null,null,null,null,null,null,null,null,null,null,null,null,null,null,null,null,null,null,null,null,null,null,null,null,null,null,null,null,null,null,null,null,null,null,null,null,null,null,null,null,null,null,null,null,null,null,null,{"$f":"CI282","v":0}]
[null,null,null,null,null,null,null,null,null,null,null,null,null,null,null,null,null,null,null,null,null,null,null,null,null,null,null,null,null,null,null,null,null,"1. Local Program Income"]
[null,null,"FTHB and/or Homeownership"]
[]
[null,null,"Rehabilitation projects",null,null,null,null,null,null,null,null,null,null,null,null,null,null,null,null,null,null,null,null,null,null,null,null,null,null,null,null,null,null,null,null,null,null,null,null,null,null,null,null,null,null,null,null,null,null,null,null,null,null,null,null,null,null,null,null,null,null,null,null,null,null,null,null,null,null,null,null,null,null,null,null,null,null,null,null,null,null,null,null,null,null,null,null,null,null,null,null,null,null,null,null,null,null,null,null,null,null,null,null,null,null,null,null,null,{"$f":"CI290","v":0}]
[null,null,null,null,null,null,null,null,null,null,null,null,null,null,null,null,null,null,null,null,null,null,null,null,null,null,null,null,null,null,null,null,null,"2. Grant (Type:",null,null,null,null,null,null,null,null,null,null,null,null,null,null,null,null,null,null,null,null,null,null,null,null,null,null,null,null,null,null,null,null,null,null,null,null,null,null,null,null,null,null,null,null,null,null,null,null,null,null,null,null,null,null,null,null,null,null,null,null,null,null,null,null,null,null,null,null,null,null,null,")"]
[]
[]
[null,null,null,null,null,null,null,null,null,null,null,null,null,null,null,null,null,null,null,null,null,null,null,null,null,null,null,null,null,null,null,null,null,null,null,null,null,null,null,null,null,null,null,null,null,null,null,null,null,null,null,null,null,null,null,null,null,null,null,null,null,null,null,null,null,null,null,null,null,null,null,null,null,null,null,null,null,null,null,null,null,null,null,null,null,null,null,null,null,null,null,null,null,null,null,null,null,null,null,null,null,null,null,null,null,null,null,null,{"$f":"CI286","v":0}]
[null,null,null,null,null,null,null,null,null,null,null,null,null,null,null,null,null,null,null,null,null,null,null,null,null,null,null,null,null,null,null,null,null,"3. Program Income Activity Delivery Costs",null,null,null,null,null,null,null,null,null,null,null,null,null,null,null,null,null,null,null,null,null,null,null,null,null,null,null,null,null,null,null,null,null,null,null,null,null,null,null,null,null,null,null,null,null,null,null,null,null,null,null,null,null,null,null,null,null,null,null,null,null,null,null,null,null,null,null,null,null,null,null," "]
[]
[]
[null,null,null,null,null,null,null,null,null,null,null,null,null,null,null,null,null,null,null,null,null,null,null,null,null,null,null,null,null,null,null,null,null,null,null,null,null,null,null,null,null,null,null,null,null,null,null,null,null,null,null,null,null,null,null,null,null,null,null,null,null,null,null,null,null,null,null,null,null,null,null,null,null,null,null,null,null,null,null,null,null,null,null,null,null,null,null,null,null,null,null,null,null,null,null,null,null,null,null,null,null,null,null,null,null,null,null,null,{"$f":"SUM(DE410,DE406,DE402)","v":0}]
[null,null,null,null,null,null,null,null,null,null,null,null,null,null,null,null,null,null,null,null,null,null,null,null,null,null,null,null,null,null,null,null,null,"4. Total Program Income HOME Funds"]
[null,null,null,null,null,null,null,null,null,null,null,null,null,null,null,null,null,null,null,null,null,null,null,null,null,null,null,null,null,null,null,null,null,null,null,null,null,null,null,null,null,null,null,null,null,null,null,null,null,null,null,null,null,null,null,null,null,null,null,null,null,null,null,null,null,null,null,null,null,null,null,null,null,null,null," "]
[null,null,"1D. Summary Funds",null,null,null,null,null,null,null,null,null,null,null,null,null,null,null,null,null,null,null,null,null,null,null,null,null,null,null,null,null,null,null,null,null,null,null,null,null,null,null,null,null,null,null,null,null,null,null,null,null,null,null,null,null,null,null,null,null,null,null,null,null,null,null,null,null,null,null,null,null,null,null,null,null,null,null,null,null,null,null,null,null,null,null,null,null,null,null,null,null,null,null,null,null,null,null,null,null,null,null,null,null,null,null,null,null,{"$f":"SUM(DE384,DE399,DE414)","v":0}]
[null,null,null,null,null,null,null,null,null,null,null,null,null,null,null,null,null,null,null,null,null,null,null,null,null,null,null,null,null,null,null,null,null,"1. Total HOME Funds"]
[]
[]
[]
[null,null,null,null,null,null,null,null,null,null,null,null,null,null,null,null,null,null,null,null,null,null,null,null,null,null,null,null,null,null,null,null,null,"2. Number of Bedrooms in Project",null,null,null,null,null,null,null,null,null,null,null,null,null,null,null,null,null,null,null,null,null,null,null,null,null,null,null,null,null,null,null,null,null,null,null,null,null,"Maximum Subsidy Limit"]
[]
[null,null,null,null,null,null,null,null,null,null,null,null,null,null,null,null,null,null,null,null,null,null,null,null,null,null,null,null,null,null,null,null,null,null,null,null,null,null,null,null,null,null,null,null,null,null,null,null,null,null,null,null,null,null,null,null,null,null,null,null,null,null,null,null,null,null,null,null,null,null,null,null,null,null,null,null,null,null,null,null,null,null,null,null,null,null,null,null,null,null,null,null,null,null,null,null,null,null,null,null,null,null,null,null,null,null,null,null,null,null,null,null,null,null,null,null,null,null,null,null,null,null,null,null,1]
[null,null,null,null,null,null,null,null,null,null,null,null,null,null,null,null,null,null,null,null,null,null,null,null,null,null,null,null,null,null,null,null,null,null,null,null,null,null,null,null,null,null,null,null,null,null,null,null,null,null,null,null,null,null,null,null,null,null,null,null,null,null,null,null,null,null,null,null,null,null,null,null,null,null,null,null,null,null,null,null,null,null,null,null,null,null,null,null,null,null,null,null,null,null,null,null,null,null,null,null,null,null,null,null,null,null,null,null,{"$f":"SUM(DE387,DE372,DE402)","v":0},null,null,null,null,null,null,null,null,null,null,null,null,null,null,null,2]
[null,null,null,null,null,null,null,null,null,null,null,null,null,null,null,null,null,null,null,null,null,null,null,null,null,null,null,null,null,null,null,null,null,"3. HOME Promissory Note",null,null,null,null,null,null,null,null,null,null,null,null,null,null,null,null,null,null,null,null,null,null,null,null,null,null,null,null,null,null,null,null,null,null,null,null,null,null,null,null,null,null,null,null,null,null,null,null,null,null,null,null,null,null,null,null,null,null,null,null,null,null,null,null,null,null,null,null,null,null,null,null,null,null,null,null,null,null,null,null,null,null,null,null,null,null,null,null,null,null,3]
[null,null,null,null,null,null,null,null,null,null,null,null,null,null,null,null,null,null,null,null,null,null,null,null,null,null,null,null,null,null,null,null,null,null,null,null,null,null,null,null,null,null,null,null,null,null,null,null,null,null,null,null,null,null,null,null,null,null,null,null,null,null,null,null,null,null,null,null,null,null,null,null,null,null,null,null,null,null,null,null,null,null,null,null,null,null,null,null,null,null,null,null,null,null,null,null,null,null,null,null,null,null,null,null,null,null,null,null,null,null,null,null,null,null,null,null,null,null,null,null,null,null,null,null,4]
[null,null,null,null,null,null,null,null,null,null,null,null,null,null,null,null,null,null,null,null,null,null,null,null,null,null,null,null,null,null,null,null,null,null,null,null,null,null,null,null,null,null,null,null,null,null,null,null,null,null,null,null,null,null,null,null,null,null,null,null,null,null,null,null,null,null,null,null,null,null,null,null,null,null,null,null,null,null,null,null,null,null,null,null,null,null,null,null,null,null,null,null,null,null,null,null,null,null,null,null,null,null,null,null,null,null,null,null,null,null,null,null,null,null,null,null,null,null,null,null,null,null,null,null,5]
[null,null,null,null,null,null,null,null,null,null,null,null,null,null,null,null,null,null,null,null,null,null,null,null,null,null,null,null,null,null,null,null,null,"4. Primary Loan (FTHB)",null,null,null,null,null,null,null,null,null,null,null,null,null,null,null,null,null,null,null,null,null,null,null,null,null,null,null,null,null,"Annual Interest Rate",null,null,null,null,null,null,null,null,null,null,null,null,null,null,null,null,null,null,null,null,null,null,null,"Amortization Period",null,null,null,null,null,null,null,null,null,null,null,null,null,null,null,null,null,null,null,null,{"$f":"CQ449","v":0},null,null,null,null,null,null,null,null,null,null,null,null,null,null,null,6]
[]
[null,null,null,null,null,null,null,null,null,null,null,null,null,null,null,null,null,null,null,null,null,null,null,null,null,null,null,null,null,null,null,null,null,null,null,null,null,null,null,null,null,null,null,null,null,null,null,null,null,null,null,null,null,null,null,null,null,null,null,null,null,null,null,null,null,null," ",null,null,null,null,null,null,null,null,null,null,null,null,"%",null,null,null,null,null,null,null,null," ",null,null,null,null,null,null,null,"Years"]
[]
[null,null,"2. Public Funds"]
[null,null,null,null,null,null,null,null,null,null,null,null,null,null,null,null,null,null,null,null,null,null,null,null,null,null,null,null,null,null,null,null,null,"1. Other Federal Funds"]
[null,null,"FTHB and/or"]
[]
[null,null,"Homeownership",null,null,null,null,null,null,null,null,null,null,null,null,null,null,null,null,null,null,null,null,null,null,null,null,null,null,null,null,null,null,null,null,null,null,null,null,null,null,null,null,null,null,null,null,null,null,null,null,null,null,null,null,null,null,null,null,null,null,null,null,null,null,null,null,null,null,null,null,null,null,null,null,null,null,null,null,null,null,null,null,null,null,null,null,null,null,null,null,null,null,null,null,null,null,null,null,null,null,null,null,2]
[null,null,null,null,null,null,null,null,null,null,null,null,null,null,null,null,null,null,null,null,null,null,null,null,null,null,null,null,null,null,null,null,null,"2. State/Local Appropriated Funds"]
[null,null,"Reahbilitation projects"]
[]
[]
[null,null,null,null,null,null,null,null,null,null,null,null,null,null,null,null,null,null,null,null,null,null,null,null,null,null,null,null,null,null,null,null,null,"3. State/Local Tax-Exempt Bond Proceeds"]
[]
[]
[null,null,null,null,null,null,null,null,null,null,null,null,null,null,null,null,null,null,null,null,null,null,null,null,null,null,null,null,null,null,null,null,null,"4. Total Public Funds",null,null,null,null,null,null,null,null,null,null,null,null,null,null,null,null,null,null,null,null,null,null,null,null,null,null,null,null,null,null,null,null,null,null,null,null,null,null,null,null,null,null,null,null,null,null,null,null,null,null,null,null,null,null,null,null,null,null,null,null,null,null,null,null,null,null,null,null,null,null,null,null,null,null,{"$f":"SUM(CQ442,CQ438,CQ434)","v":0}]
[]
[]
[null,null,"3. Private Funds"]
[null,null,null,null,null,null,null,null,null,null,null,null,null,null,null,null,null,null,null,null,null,null,null,null,null,null,null,null,null,null,null,null,null,"1. Private Loan Funds"]
[null,null,"FTHB and/or"]
[]
[null,null,"Homeownership"]
[null,null,null,null,null,null,null,null,null,null,null,null,null,null,null,null,null,null,null,null,null,null,null,null,null,null,null,null,null,null,null,null,null,"2. Owner Cash Contribution"]
[null,null,"Reahbilitation projects"]
[]
[]
[null,null,null,null,null,null,null,null,null,null,null,null,null,null,null,null,null,null,null,null,null,null,null,null,null,null,null,null,null,null,null,null,null,"3. Private Grants"]
[]
[]
[null,null,null,null,null,null,null,null,null,null,null,null,null,null,null,null,null,null,null,null,null,null,null,null,null,null,null,null,null,null,null,null,null,null,null,null,null,null,null,null,null,null,null,null,null,null,null,null,null,null,null,null,null,null,null,null,null,null,null,null,null,null,null,null,null,null,null,null,null,null,null,null,null,null,null,null,null,null,null,null,null,null,null,null,null,null,null,null,null,null,null,null,null,null,null,null,null,null,null,null,null,null,null,null,null,null,null,null,{"$f":"SUM(CQ449,CQ453,CQ457)","v":0}]
[null,null,null,null,null,null,null,null,null,null,null,null,null,null,null,null,null,null,null,null,null,null,null,null,null,null,null,null,null,null,null,null,null,"4. Total Private Funds"]
[]
[]
[null,null,null,null,null,null,null,null,null,null,null,null,null,null,null,null,null,null,null,null,null,null,null,null,null,null,null,null,null,null,null,null,null,null,null,null,null,null,null,null,null,null,null,null,null,null,null,null,null,null,null,null,null,null,null,null,null,null,null,null,null,null,null,null,null,null,null,null,null,null,null,null,null,null,null,null,null,null,null,null,null,null,null,null,null,null,null,null,null,null,null,null,null,null,null,null,null,null,null,null,null,null,null,null,null,null,null,null,{"$f":"SUM(DE417,DE445,DE460)","v":0}]
[null,null,"Total Project Costs"]
[]
[]
[]
[]
[]
[]
[]
[]
[]
[]
[]
[null,"END OF DOCUMENT"]